{"text_format":"1","workbook":"xlsx","n_sheets":10,"sheets":["Dataset 1","Using Keyboard Shortcut - 1","Using Keyboard Shortcut - 2","Using Keyboard Shortcut - 3","Using Symbol Dialog Box - 1","Using Symbol Dialog Box - 2","CHAR Function","Dataset 2","Conditional Formatting","VBA"],"not_rendered":{"charts":0,"images":0,"macros":1,"external_links":0,"defined_names":0,"comments":0,"pivot_tables":0},"unopened":[],"bounds":{"document_bytes":16777216,"sheet_cells":100000,"rows_first":2000,"rows_last":500,"rows_between":2000,"halvings":0,"cell_chars":16384,"cell_head_chars":4096},"cells_cut":0,"cells_raw":0,"read":"whole","date_system":"1900"}

{"sheet":"Dataset 1","index":0,"n_rows":9,"n_cols":3,"rows_kept":9,"cut":false,"hidden":false,"merged":[[1,1,1,2]]}
[]
[null,"Dataset 1"]
[]
[null,"Task","Status"]
[null,"Go for a Jog"]
[null,"Do the Grocery"]
[null,"Send Email to John"]
[null,"Call Emily"]
[null,"Dinner with Friends"]

{"sheet":"Using Keyboard Shortcut - 1","index":1,"n_rows":13,"n_cols":3,"rows_kept":13,"cut":false,"hidden":false,"merged":[[1,1,1,2]]}
[]
[null,"Using Keyboard Shortcut"]
[]
[null,"Keyboard Shortcut","Result  "]
[null,"SHIFT + P","P"]
[null,"SHIFT + O","O"]
[]
[null,"Task","Status"]
[null,"Go for a Jog","P"]
[null,"Do the Grocery"]
[null,"Send Email to John"]
[null,"Call Emily"]
[null,"Dinner with Friends"]

{"sheet":"Using Keyboard Shortcut - 2","index":2,"n_rows":15,"n_cols":3,"rows_kept":15,"cut":false,"hidden":false,"merged":[[1,1,1,2]]}
[]
[null,"Using Keyboard Shortcut"]
[]
[null,"Keyboard Shortcut","Result"]
[null,"ALT + 0252","ü"]
[null,"ALT + 0251","û"]
[null,"ALT + 0254","þ"]
[null,"ALT + 0253","ý"]
[]
[null,"Task","Status"]
[null,"Go for a Jog","ü"]
[null,"Do the Grocery","ý"]
[null,"Send Email to John","þ"]
[null,"Call Emily","û"]
[null,"Dinner with Friends","ü"]

{"sheet":"Using Keyboard Shortcut - 3","index":3,"n_rows":13,"n_cols":3,"rows_kept":13,"cut":false,"hidden":false,"merged":[[1,1,1,2]]}
[]
[null,"Using Keyboard Shortcut"]
[]
[null,"Keyboard Shortcut","Result"]
[null,"a","a"]
[null,"r","r"]
[]
[null,"Task","Status"]
[null,"Go for a Jog","r"]
[null,"Do the Grocery","r"]
[null,"Send Email to John","a"]
[null,"Call Emily","a"]
[null,"Dinner with Friends","a"]

{"sheet":"Using Symbol Dialog Box - 1","index":4,"n_rows":9,"n_cols":3,"rows_kept":9,"cut":false,"hidden":false,"merged":[[1,1,1,2]]}
[]
[null,"Using Symbol Dialog Box"]
[]
[null,"Task","Status"]
[null,"Go for a Jog","ü"]
[null,"Do the Grocery","ü"]
[null,"Send Email to John","ü"]
[null,"Call Emily","ü"]
[null,"Dinner with Friends","ü"]

{"sheet":"Using Symbol Dialog Box - 2","index":5,"n_rows":9,"n_cols":3,"rows_kept":9,"cut":false,"hidden":false,"merged":[[1,1,1,2]]}
[]
[null,"Using Symbol Dialog Box"]
[]
[null,"Task","Status"]
[null,"Go for a Jog","✔"]
[null,"Do the Grocery","✔"]
[null,"Send Email to John","✔"]
[null,"Call Emily","✔"]
[null,"Dinner with Friends","✔"]

{"sheet":"CHAR Function","index":6,"n_rows":15,"n_cols":3,"rows_kept":15,"cut":false,"hidden":false,"merged":[[1,1,1,2]]}
[]
[null,"Using CHAR Function"]
[]
[null,"Formula","Result"]
[null,{"$f":"_xlfn.FORMULATEXT(C5)","v":"=CHAR(252)"},{"$f":"CHAR(252)","v":"ü"}]
[null,{"$f":"_xlfn.FORMULATEXT(C6)","v":"=CHAR(251)"},{"$f":"CHAR(251)","v":"û"}]
[null,"=CHAR(254)",{"$f":"CHAR(254)","v":"þ"}]
[null,"=CHAR(253)",{"$f":"CHAR(253)","v":"ý"}]
[]
[null,"Task","Status"]
[null,"Go for a Jog",{"$f":"CHAR(251)","v":"û"}]
[null,"Do the Grocery",{"$f":"CHAR(252)","v":"ü"}]
[null,"Send Email to John",{"$f":"CHAR(252)","v":"ü"}]
[null,"Call Emily",{"$f":"CHAR(253)","v":"ý"}]
[null,"Dinner with Friends",{"$f":"CHAR(254)","v":"þ"}]

{"sheet":"Dataset 2","index":7,"n_rows":14,"n_cols":3,"rows_kept":14,"cut":false,"hidden":false,"merged":[[1,1,1,2]]}
[]
[null,"Dataset 2"]
[]
[null,"Name","Sales"]
[null,"Sam",2435]
[null,"Adam",4025]
[null,"Anna",4767]
[null,"Harry",4533]
[null,"Tyler",1591]
[null,"Will",3660]
[null,"Smith",2092]
[null,"Julie",2914]
[null,"Gloria",2652]
[null,"Mary",1096]

{"sheet":"Conditional Formatting","index":8,"n_rows":14,"n_cols":4,"rows_kept":14,"cut":false,"hidden":false,"merged":[[1,1,1,3]]}
[]
[null,"Applying Conditional Formatting"]
[]
[null,"Name","Sales","More than 3000?"]
[null,"Sam",2435,{"$f":"C5","v":2435}]
[null,"Adam",4025,{"$f":"C6","v":4025}]
[null,"Anna",4767,4767]
[null,"Harry",4533,4533]
[null,"Tyler",1591,1591]
[null,"Will",3660,3660]
[null,"Smith",2092,2092]
[null,"Julie",2914,2914]
[null,"Gloria",2652,2652]
[null,"Mary",1096,1096]

{"sheet":"VBA","index":9,"n_rows":9,"n_cols":3,"rows_kept":9,"cut":false,"hidden":false,"merged":[[1,1,1,2]]}
[]
[null,"Using VBA Code"]
[]
[null,"Task","Status"]
[null,"Go for a Jog","Ö"]
[null,"Do the Grocery","Ö"]
[null,"Send Email to John"]
[null,"Call Emily"]
[null,"Dinner with Friends","Ö"]